Workbook

Sheet Ceny opcí
B1: Vyplň pouze modré buňky!!!
B3: Cena podkladu | D3: 6.93 | J3: Rho | K3: Vega | L3: Theta | M3: Gamma | N3: Delta | O3: Cena Call | Q3: Strike | S3: Cena Put | T3: Delta | U3: Gamma | V3: Theta | W3: Vega | X3: Rho
B4: Datum ocenění | D4: 2025-02-23T10:53:00 | J4: =RhoCall($D$3,Q4,$D$14,$D$7,$D$6,$D$8) -> 0.01254860768 | K4: =VegaOpce($D$3,Q4,$D$14,$D$7,$D$6,$D$8) -> 5.06937742e-05 | L4: =ThetaCall($D$3,Q4,$D$14,$D$7,$D$6,$D$8) -> -0.0002444295981 | M4: =GammaOpce($D$3,Q4,$D$14,$D$7,$D$6,$D$8) -> 0.0003401165624 | N4: =DeltaCall($D$3,Q4,$D$14,$D$7,$D$6,$D$8) -> 0.9997567682 | O4: =CallCena($D$3,Q4,$D$14,$D$7,$D$6,$D$8) -> 4.987533979 | P4: ITM | Q4: =Q5-$D$11 -> 2 | R4: OTM | S4: =PutCena($D$3,Q4,$D$14,$D$7,$D$6,$D$8) -> 0.0001806176954 | T4: =DeltaPut($D$3,Q4,$D$14,$D$7,$D$6,$D$8) -> -0.000243231755 | U4: =GammaOpce($D$3,Q4,$D$14,$D$7,$D$6,$D$8) -> 0.0003401165624 | V4: =ThetaPut($D$3,Q4,$D$14,$D$7,$D$6,$D$8) -> -4.925217923e-06 | W4: =VegaOpce($D$3,Q4,$D$14,$D$7,$D$6,$D$8) -> 5.06937742e-05 | X4: =RhoPut($D$3,Q4,$D$14,$D$7,$D$6,$D$8) -> -4.181034625e-05
B5: Expirace opce | D5: 2025-10-17T10:53:00 | J5: 0.01846224269 | K5: 0.001139468932 | L5: -0.0004679124851 | M5: 0.007644967499 | N5: 0.9926071394 | O5: 4.023378246 | P5: ITM | Q5: 3 | R5: OTM | S5: 0.007348204563 | T5: -0.007392860612 | U5: 0.007644967499 | V5: -0.0001086559149 | W5: 0.001139468932 | X5: -0.0008749553426
B6: Volatilita | D6: 0.48 | J6: 0.0227164502 | K6: 0.005310299916 | L6: -0.0009731831521 | M6: 0.03562806244 | N6: 0.9546991664 | O6: 3.102715934 | P6: ITM | Q6: 4 | R6: OTM | S6: 0.05800921126 | T6: -0.04530083356 | U6: 0.03562806244 | V6: -0.0004941743918 | W6: 0.005310299916 | X6: -0.004166485981
B7: Úroky | D7: 0.045 | J7: 0.02407665227 | K7: 0.0119516985 | L7: -0.001674515675 | M7: 0.08018678176 | N7: 0.8673800829 | O7: 2.287224449 | P7: ITM | Q7: 5 | R7: OTM | S7: 0.2138410465 | T7: -0.1326199171 | U7: 0.08018678176 | V7: -0.001075754724 | W7: 0.0119516985 | X7: -0.01015249591
B8: Dividenda | D8: 0 | J8: 0.02264416765 | K8: 0.01809387767 | L8: -0.002271829739 | M8: 0.1213961195 | N8: 0.7394713301 | O8: 1.62236632 | P8: ITM | Q8: =Q9-$D$11 -> 6 | R8: OTM | S8: 0.5203062367 | T8: -0.2605286699 | U8: 0.1213961195 | V8: -0.001553316599 | W8: 0.01809387767 | X8: -0.01736872232
J9: =RhoCall($D$3,Q9,$D$14,$D$7,$D$6,$D$8) -> 0.01947061439 | K9: =VegaOpce($D$3,Q9,$D$14,$D$7,$D$6,$D$8) -> 0.02158744701 | L9: =ThetaCall($D$3,Q9,$D$14,$D$7,$D$6,$D$8) -> -0.00256659531 | M9: 0.1448353054 | N9: =DeltaCall($D$3,Q9,$D$14,$D$7,$D$6,$D$8) -> 0.595737278 | O9: 1.117114315 | P9: ATM | Q9: =ROUND(D3,0) -> 7 | R9: ATM | S9: 0.9863775508 | T9: =DeltaPut($D$3,Q9,$D$14,$D$7,$D$6,$D$8) -> -0.404262722 | U9: 0.1448353054 | V9: =ThetaPut($D$3,Q9,$D$14,$D$7,$D$6,$D$8) -> -0.001728329979 | W9: =VegaOpce($D$3,Q9,$D$14,$D$7,$D$6,$D$8) -> 0.02158744701 | X9: =RhoPut($D$3,Q9,$D$14,$D$7,$D$6,$D$8) -> -0.02424682771
B10: Strike | D10: 5 | J10: =RhoCall($D$3,Q10,$D$14,$D$7,$D$6,$D$8) -> 0.01568612269 | K10: =VegaOpce($D$3,Q10,$D$14,$D$7,$D$6,$D$8) -> 0.02211162146 | L10: =ThetaCall($D$3,Q10,$D$14,$D$7,$D$6,$D$8) -> -0.002547739268 | M10: =GammaOpce($D$3,Q10,$D$14,$D$7,$D$6,$D$8) -> 0.1483521162 | N10: =DeltaCall($D$3,Q10,$D$14,$D$7,$D$6,$D$8) -> 0.4587288781 | O10: 0.7529594379 | P10: OTM | Q10: =Q9+$D$11 -> 8 | R10: ITM | S10: 1.593545993 | T10: =DeltaPut($D$3,Q10,$D$14,$D$7,$D$6,$D$8) -> -0.5412711219 | U10: 0.1483521162 | V10: =ThetaPut($D$3,Q10,$D$14,$D$7,$D$6,$D$8) -> -0.001589721747 | W10: =VegaOpce($D$3,Q10,$D$14,$D$7,$D$6,$D$8) -> 0.02211162146 | X10: =RhoPut($D$3,Q10,$D$14,$D$7,$D$6,$D$8) -> -0.02993463217
B11: Krok Strike | D11: 1 | J11: 0.01206057242 | K11: 0.02044861251 | L11: -0.002309488458 | M11: 0.1371945945 | N11: 0.3413433579 | O11: 0.5002090748 | P11: OTM | Q11: =Q10+$D$11 -> 9 | R11: ITM | S11: 2.31211895 | T11: -0.6586566421 | U11: 0.1371945945 | V11: -0.001231718748 | W11: 0.02044861251 | X11: -0.03423609519
J12: 0.008969440204 | K12: 0.01762050846 | L12: -0.001962943576 | M12: 0.1182201732 | N12: 0.2476899002 | O12: 0.3292682649 | P12: OTM | Q12: 10 | R12: ITM | S12: 3.112501459 | T12: -0.7523100998 | U12: 0.1182201732 | V12: -0.0007654216756 | W12: 0.01762050846 | X12: -0.0373069139
B13: Do expirace (dny) | D13: =D5-D4 -> 236 | E13: =D5-D4 | J13: 0.006515160594 | K13: 0.01444310706 | L13: -0.001593020306 | M13: 0.09690223309 | N13: 0.1765182511 | O13: 0.2156301173 | P13: OTM | Q13: 11 | R13: ITM | S13: 3.970186631 | T13: -0.8234817489 | U13: 0.09690223309 | V13: -0.0002757462149 | W13: 0.01444310706 | X13: -0.03941818478
B14: Život opce (roční) | D14: =(D5-D4)/365 -> 0.6465753425 | E14: =(D5-D4)/365 | J14: 0.00465490037 | K14: 0.01142083686 | L14: -0.00125019973 | M14: 0.07662510505 | N14: 0.124218805 | O14: 0.1409046936 | P14: OTM | Q14: 12 | R14: ITM | S14: 4.866784527 | T14: -0.875781195 | U14: 0.07662510505 | V14: 0.0001868265503 | W14: 0.01142083686 | X14: -0.04083453099
B15: Dividenda (roční) | D15: 0 | J15: 0.003288238805 | K15: 0.008798536675 | L15: -0.0009574659102 | M15: 0.05903147073 | N15: 0.08667240992 | O15: 0.09207744317 | P15: OTM | Q15: =Q14+$D$11 -> 13 | R15: ITM | S15: 5.789280595 | T15: -0.9133275901 | U15: 0.05903147073 | V15: 0.0005993125606 | W15: 0.008798536675 | X15: -0.04176985173
B17: =CallCena(CenaPodkladu, Strike, ZivotOpce, Uroky, Volatilita, Dividenda)
B18: =CallCena(D3,D10,D14,D7,D6,D8) -> 2.287224449 | C18: =CallCena(D3;D10;D13;D7;D6;D8)
B20: =PutCena(CenaPodkladu, Strike, ZivotOpce, Uroky, Volatilita, Dividenda)
B21: =PutCena(D3,D10,D14,D7,D6,D8) -> 0.2138410465 | C21: =PutCena(D3;D10;D13;D7;D6;D8)
B23: =DeltaCall(CenaPodkladu, Strike, ZivotOpce, Uroky, Volatilita, Dividenda)
B24: =DeltaCall(D3,D10,D14,D7,D6,D8) -> 0.8673800829 | C24: =DeltaCall(D3;D10;D14;D7;D6;D8)
B26: =DeltaPut(CenaPodkladu, Strike, ZivotOpce, Uroky, Volatilita, Dividenda)
B27: =DeltaPut(D3,D10,D14,D7,D6,D8) -> -0.1326199171 | C27: =DeltaPut(D3;D10;D14;D7;D6;D8)
B29: =GammaOpce(CenaPodkladu, Strike, ZivotOpce, Uroky, Volatilita, Dividenda)
B30: =GammaOpce(D3,D10,D14,D7,D6,D8) -> 0.08018678176 | C30: =GammaOpce(D3;D10;D14;D7;D6;D8)
B32: =ThetaCall(CenaPodkladu, Strike, ZivotOpce, Uroky, Volatilita, Dividenda)
B33: =ThetaCall(D3,D10,D14,D7,D6,D8) -> -0.001674515675 | C33: =ThetaCall(D3;D10;D14;D7;D6;D8)
B35: =ThetaPut(CenaPodkladu, Strike, ZivotOpce, Uroky, Volatilita, Dividenda)
B36: =ThetaPut(D3,D10,D14,D7,D6,D8) -> -0.001075754724 | C36: =ThetaPut(D3;D10;D14;D7;D6;D8)
B38: =VegaOpce(CenaPodkladu, Strike, ZivotOpce, Uroky, Volatilita, Dividenda)
B39: =VegaOpce(D3,D10,D14,D7,D6,D8) -> 0.0119516985 | C39: =VegaOpce(D3;D10;D14;D7;D6;D8)
B41: =RhoCall(CenaPodkladu, Strike, ZivotOpce, Uroky, Volatilita, Dividenda)
B42: =RhoCall(D3,D10,D14,D7,D6,D8) -> 0.02407665227 | C42: =RhoCall(D3;D10;D14;D7;D6;D8)
B44: =RhoPut(CenaPodkladu, Strike, ZivotOpce, Uroky, Volatilita, Dividenda)
B45: =RhoPut(D3,D10,D14,D7,D6,D8) -> -0.01015249591 | C45: =RhoCall(D3;D10;D14;D7;D6;D8)

Sheet Historická Volatilita
G2: bez ln | H2: s ln
G3: (21 dnů perioda) | H3: (21 dnů perioda) | I3: bez ln | J3: s ln | M3: (30 obch. dnů perioda) | P3: (21 obch. dnů perioda)
B4: Date | C4: Close | E4: bez ln | F4: s ln | G4: měsíc | H4: měsíc | I4: 30? denní HV | L4: použití logaritmu | N4: 30 denní HV | Q4: 30 denní HV
B5: 2022-09-20 | C5: 936 | E5: =C5/C6-1 -> -0.01317870322 | F5: =LN(C5/C6) -> -0.0132663129 | G5: =STDEV(E5:E25) -> 0.02238322528 | H5: =STDEV(F5:F25) -> 0.0222417536 | I5: =G5*SQRT(252) -> 0.3553226857 | J5: =H5*SQRT(252) -> 0.3530768925 | L5: =LN(C5/C6) -> -0.0132663129 | M5: =STDEV(L5:L34) -> 0.02062795514 | N5: =M5*SQRT(252) -> 0.3274586362 | P5: =STDEV(L5:L25) -> 0.0222417536 | Q5: =P5*SQRT(252) -> 0.3530768925
B6: 2022-09-19 | C6: 948.5 | E6: =C6/C7-1 -> -0.01043296818 | F6: =LN(C6/C7) -> -0.01048777311 | G6: =STDEV(E6:E26) -> 0.02292989473 | H6: 0.02280296246 | I6: =G6*SQRT(252) -> 0.3640007943 | J6: =H6*SQRT(252) -> 0.361985807 | L6: =LN(C6/C7) -> -0.01048777311 | M6: =STDEV(L6:L35) -> 0.02172463694 | N6: =M6*SQRT(252) -> 0.34486792 | P6: =STDEV(L6:L26) -> 0.02280296246 | Q6: =P6*SQRT(252) -> 0.361985807 | S6: =LN(C6/C7)
B7: 2022-09-16 | C7: 958.5 | E7: -0.01993865031 | F7: -0.02014010755 | G7: =STDEV(E7:E27) -> 0.02315004121 | H7: 0.02302493324 | I7: 0.3674955112 | J7: 0.3655094838 | L7: -0.02014010755 | M7: 0.02169667142 | N7: 0.3444239811 | P7: 0.02302493324 | Q7: 0.3655094838
B8: 2022-09-15 | C8: 978 | E8: -0.00102145046 | F8: -0.001021972496 | G8: =STDEV(E8:E28) -> 0.02295176191 | H8: 0.02282445783 | I8: 0.364347925 | J8: 0.3623270354 | L8: -0.001021972496 | M8: 0.02146083121 | N8: 0.3406801339 | P8: 0.02282445783 | Q8: 0.3623270354
B9: 2022-09-14 | C9: 979 | E9: 0.01556016598 | F9: 0.01544034792 | G9: =STDEV(E9:E29) -> 0.02307228118 | H9: 0.02294026991 | I9: 0.3662611091 | J9: 0.3641654952 | L9: 0.01544034792 | M9: 0.02148839645 | N9: 0.3411177184 | P9: 0.02294026991 | Q9: 0.3641654952 | S9: =SMODCH.VÝBĚR(L9:L38)
B10: 2022-09-13 | C10: 964 | E10: 0.02771855011 | F10: 0.0273413456 | G10: =STDEV(E10:E30) -> 0.02300377787 | H10: 0.02287183654 | I10: 0.3651736527 | J10: 0.363079149 | L10: =LN(C10/C11) -> 0.0273413456 | M10: 0.02179604681 | N10: 0.3460015165 | P10: 0.02287183654 | Q10: 0.363079149
B11: 2022-09-12 | C11: 938 | E11: 0.00320855615 | F11: 0.003203419718 | G11: =STDEV(E11:E31) -> 0.02181041422 | H11: 0.02167768906 | I11: 0.3462295921 | J11: 0.3441226455 | L11: 0.003203419718 | M11: =STDEV(L11:L40) -> 0.02109807296 | N11: =M11*SQRT(252) -> 0.3349215251 | P11: 0.02167768906 | Q11: 0.3441226455
B12: 2022-09-09 | C12: 935 | E12: -0.03259182618 | F12: -0.03313476936 | G12: =STDEV(E12:E32) -> 0.0219898866 | H12: 0.02186025528 | I12: 0.3490786279 | J12: 0.3470207944 | L12: -0.03313476936 | M12: 0.02465994438 | N12: 0.3914644811 | P12: 0.02186025528 | Q12: 0.3470207944
B13: 2022-09-08 | C13: 966.5 | E13: -0.003094378546 | F13: -0.003099176034 | G13: =STDEV(E13:E33) -> 0.0213296048 | H13: 0.02117476581 | I13: 0.3385969792 | J13: 0.3361389864 | L13: -0.003099176034 | M13: 0.02411461388 | N13: 0.3828076277 | P13: 0.02117476581 | Q13: 0.3361389864
B14: 2022-09-07 | C14: 969.5 | E14: 0.06014215418 | F14: 0.05840300685 | G14: =STDEV(E14:E34) -> 0.02214258025 | H14: 0.02199300688 | I14: 0.3515025644 | J14: 0.3491281607 | L14: 0.05840300685 | M14: 0.02488666259 | N14: 0.3950635211 | P14: 0.02199300688 | Q14: 0.3491281607 | S14: =M14*ODMOCNINA(252)
B15: 2022-09-06 | C15: 914.5 | E15: 0.003841931943 | F15: 0.003834570571 | G15: =STDEV(E15:E35) -> 0.0188613744 | H15: 0.01890864487 | I15: 0.2994150362 | J15: 0.3001654318 | L15: 0.003834570571 | M15: 0.02281592954 | N15: 0.362191653 | P15: 0.01890864487 | Q15: 0.3001654318
B16: 2022-09-05 | C16: 911 | E16: -0.03953610965 | F16: -0.04033889212 | G16: =STDEV(E16:E36) -> 0.0188163119 | H16: 0.01886289543 | I16: 0.2986996912 | J16: 0.2994391819 | L16: -0.04033889212 | M16: 0.02357722066 | N16: 0.3742767749 | P16: 0.01886289543 | Q16: 0.2994391819
B17: 2022-09-02 | C17: 948.5 | E17: -0.02618069815 | F17: -0.02652951427 | G17: =STDEV(E17:E37) -> 0.01718617028 | H17: 0.01717287655 | I17: 0.2728219954 | J17: 0.2726109639 | L17: -0.02652951427 | M17: 0.02280412993 | N17: 0.36200434 | P17: 0.01717287655 | Q17: 0.2726109639
B18: 2022-09-01 | C18: 974 | E18: -0.01317122594 | F18: -0.01325873579 | G18: =STDEV(E18:E38) -> 0.01652525781 | H18: 0.01650050838 | I18: 0.262330335 | J18: 0.2619374501 | L18: -0.01325873579 | M18: 0.02245494909 | N18: 0.3564612659 | P18: 0.01650050838 | Q18: 0.2619374501
B19: 2022-08-31 | C19: 987 | E19: -0.008538422903 | F19: -0.008575084071 | G19: =STDEV(E19:E39) -> 0.01739955371 | H19: 0.01736556212 | I19: 0.2762093523 | J19: 0.2756697525 | L19: -0.008575084071 | M19: 0.02239468235 | N19: 0.3555045612 | P19: 0.01736556212 | Q19: 0.2756697525
B20: 2022-08-30 | C20: 995.5 | E20: 0.005555555556 | F20: 0.005540180376 | G20: =STDEV(E20:E40) -> 0.01731991808 | H20: 0.01728853827 | I20: 0.2749451759 | J20: 0.2744470367 | L20: 0.005540180376 | M20: 0.02257072779 | N20: 0.3582991958 | P20: 0.01728853827 | Q20: 0.2744470367
B21: 2022-08-29 | C21: 990 | E21: -0.0198019802 | F21: -0.02000066671 | G21: =STDEV(E21:E41) -> 0.02294645442 | H21: 0.02327787556 | I21: 0.3642636711 | J21: 0.3695248187 | L21: -0.02000066671 | M21: 0.02302661381 | N21: 0.3655361621 | P21: 0.02327787556 | Q21: 0.3695248187
B22: 2022-08-26 | C22: 1010 | E22: 0.001984126984 | F22: 0.001982161204 | G22: =STDEV(E22:E42) -> 0.02270701334 | H22: 0.0230473617 | I22: 0.3604626619 | J22: 0.3658655246 | L22: 0.001982161204 | M22: 0.02447390996 | N22: 0.3885112762 | P22: 0.0230473617 | Q22: 0.3658655246
B23: 2022-08-25 | C23: 1008 | E23: -0.00198019802 | F23: -0.001982161204 | G23: =STDEV(E23:E43) -> 0.02381480321 | H23: 0.02416529043 | I23: 0.3780482808 | J23: 0.3836120931 | L23: -0.001982161204 | M23: 0.0249745452 | N23: 0.3964586143 | P23: 0.02416529043 | Q23: 0.3836120931
B24: 2022-08-24 | C24: 1010 | E24: -0.02131782946 | F24: -0.02154833621 | G24: =STDEV(E24:E44) -> 0.02502774046 | H24: 0.02535034969 | I24: 0.3973030628 | J24: 0.4024243256 | L24: -0.02154833621 | M24: 0.02497443515 | N24: 0.3964568672 | P24: 0.02535034969 | Q24: 0.4024243256
B25: 2022-08-23 | C25: 1032 | E25: 0.02178217822 | F25: 0.02154833621 | G25: =STDEV(E25:E45) -> 0.02560655989 | H25: 0.02592082543 | I25: 0.4064915365 | J25: 0.4114803472 | L25: 0.02154833621 | M25: 0.0248223997 | N25: 0.3940433794 | P25: 0.02592082543 | Q25: 0.4114803472
B26: 2022-08-22 | C26: 1010 | E26: -0.02791145332 | F26: -0.02830838126 | G26: =STDEV(E26:E46) -> 0.02531267686 | H26: 0.02562233822 | I26: 0.4018262879 | J26: 0.4067420097 | L26: -0.02830838126 | M26: 0.02473513363 | N26: 0.3926580734 | P26: 0.02562233822 | Q26: 0.4067420097
B27: 2022-08-19 | C27: 1039 | E27: -0.01981132075 | F27: -0.02001019601 | G27: =STDEV(E27:E47) -> 0.02473893334 | H27: 0.02504768756 | I27: 0.3927183919 | J27: 0.3976197132 | L27: -0.02001019601 | M27: 0.02426631025 | N27: 0.385215733 | P27: 0.02504768756 | Q27: 0.3976197132
B28: 2022-08-18 | C28: 1060 | E28: -0.01211556384 | F28: -0.01218955552 | G28: =STDEV(E28:E48) -> 0.02441952246 | H28: 0.02473648275 | I28: 0.3876479014 | J28: 0.3926794901 | L28: -0.01218955552 | M28: 0.0239481221 | N28: 0.3801646527 | P28: 0.02473648275 | Q28: 0.3926794901
B29: 2022-08-17 | C29: 1073 | E29: -0.01559633028 | F29: -0.01571923259 | G29: =STDEV(E29:E49) -> 0.024632706 | H29: 0.02494791562 | I29: 0.3910320852 | J29: 0.3960358828 | L29: -0.01571923259 | M29: 0.0273761929 | N29: 0.4345835895 | P29: 0.02494791562 | Q29: 0.3960358828
B30: 2022-08-16 | C30: 1090 | E30: 0.01395348837 | F30: 0.01385703466 | G30: =STDEV(E30:E50) -> 0.02498877679 | H30: 0.02530670036 | I30: 0.3966845337 | J30: 0.4017314139 | L30: 0.01385703466 | M30: 0.02817184127 | N30: 0.4472141159 | P30: 0.02530670036 | Q30: 0.4017314139
B31: 2022-08-15 | C31: 1075 | E31: -0.01376146789 | F31: -0.01385703466 | G31: =STDEV(E31:E51) -> 0.02685660922 | H31: 0.02708570713 | I31: 0.4263354543 | J31: 0.429972271 | L31: -0.01385703466 | M31: 0.03303883403 | N31: 0.5244752308 | P31: 0.02708570713 | Q31: 0.429972271
B32: 2022-08-12 | C32: 1090 | E32: 0.009259259259 | F32: 0.009216655105 | G32: =STDEV(E32:E52) -> 0.02714820217 | H32: 0.02738294927 | I32: 0.430964349 | J32: 0.4346908436 | L32: 0.009216655105 | M32: 0.0337500857 | N32: 0.5357660009 | P32: 0.02738294927 | Q32: 0.4346908436
B33: 2022-08-11 | C33: 1080 | E33: -0.01728844404 | F33: -0.01743963429 | G33: =STDEV(E33:E53) -> 0.0271179618 | H33: 0.02734804201 | I33: 0.4304842979 | J33: 0.434136708 | L33: -0.01743963429 | M33: 0.03380377105 | N33: 0.5366182295 | P33: 0.02734804201 | Q33: 0.434136708
B34: 2022-08-10 | C34: 1099 | E34: 0.02137546468 | F34: 0.02115021368 | G34: =STDEV(E34:E54) -> 0.02705055703 | H34: 0.02728087334 | I34: 0.4294142804 | J34: 0.4330704385 | L34: 0.02115021368 | M34: 0.03454558035 | N34: 0.548394087 | P34: 0.02728087334 | Q34: 0.4330704385
B35: 2022-08-09 | C35: 1076 | E35: 0.03461538462 | F35: 0.03402974859 | G35: =STDEV(E35:E55) -> 0.02696387919 | H35: 0.02719584161 | I35: 0.4280383124 | J35: 0.4317206015 | L35: 0.03402974859 | M35: 0.0404068671 | N35: 0.6414391297 | P35: 0.02719584161 | Q35: 0.4317206015
B36: 2022-08-08 | C36: 1040 | E36: 0.001926782274 | F36: 0.00192492841 | G36: =STDEV(E36:E56) -> 0.02608913117 | H36: 0.02634891337 | I36: 0.414152118 | J36: 0.4182760326 | L36: 0.00192492841 | M36: 0.03992219513 | N36: 0.6337452006 | P36: 0.02634891337 | Q36: 0.4182760326
B37: 2022-08-05 | C37: 1038 | E37: -0.006698564593 | F37: -0.006721100673 | G37: =STDEV(E37:E57) -> 0.02610261099 | H37: 0.02635983027 | I37: 0.4143661034 | J37: 0.418449333 | L37: -0.006721100673 | M37: 0.04000309316 | N37: 0.635029417 | P37: 0.02635983027 | Q37: 0.418449333
B38: 2022-08-04 | C38: 1045 | E38: 0.003842459174 | F38: 0.003835095784 | G38: =STDEV(E38:E58) -> 0.03098928397 | H38: 0.03090502525 | I38: 0.4919396321 | J38: 0.4906020664 | L38: 0.003835095784 | M38: 0.04000042363 | N38: 0.6349870396 | P38: 0.03090502525 | Q38: 0.4906020664
B39: 2022-08-03 | C39: 1041 | E39: 0.02460629921 | F39: 0.02430844048 | G39: =STDEV(E39:E59) -> 0.03230980428 | H39: 0.03224105177 | I39: 0.5129022421 | J39: 0.5118108299 | L39: 0.02430844048 | M39: 0.04002621277 | N39: 0.6353964294 | P39: 0.03224105177 | Q39: 0.5118108299
B40: 2022-08-02 | C40: 1016 | E40: 0 | F40: 0 | G40: =STDEV(E40:E60) -> 0.03754695688 | H40: 0.03789541143 | I40: 0.5960394623 | J40: 0.6015710069 | L40: 0 | M40: 0.03998640438 | N40: 0.6347644909 | P40: 0.03789541143 | Q40: 0.6015710069
B41: 2022-08-01 | C41: 1016 | E41: -0.07044830741 | F41: -0.07305286004 | G41: =STDEV(E41:E61) -> 0.03841912848 | H41: 0.03876085645 | I41: 0.6098847573 | J41: 0.6153095207 | L41: -0.07305286004 | M41: 0.04001822972 | N41: 0.6352697025 | P41: 0.03876085645 | Q41: 0.6153095207
B42: 2022-07-29 | C42: 1093 | E42: 0.001833180568 | F42: 0.001831502343 | G42: =STDEV(E42:E62) -> 0.03533323481 | H42: 0.03552514122 | I42: 0.5608977139 | J42: 0.5639441337 | L42: 0.001831502343 | M42: 0.03792628614 | N42: 0.6020611277 | P42: 0.03552514122 | Q42: 0.5639441337
B43: 2022-07-28 | C43: 1091 | E43: -0.03706972639 | F43: -0.03777427519 | G43: =STDEV(E43:E63) -> 0.03657900065 | H43: 0.03674564641 | I43: 0.5806736335 | J43: 0.583319053 | L43: -0.03777427519 | M43: 0.03794482856 | N43: 0.6023554795 | P43: 0.03674564641 | Q43: 0.583319053
B44: 2022-07-27 | C44: 1133 | E44: 0.03 | F44: 0.02955880224 | G44: =STDEV(E44:E64) -> 0.04326371983 | H44: 0.04413630345 | I44: 0.6867902607 | J44: 0.7006420962 | L44: 0.02955880224 | M44: 0.03740704448 | N44: 0.5938184219 | P44: 0.04413630345 | Q44: 0.7006420962
B45: 2022-07-26 | C45: 1100 | E45: 0.02803738318 | F45: 0.02765153133 | G45: =STDEV(E45:E65) -> 0.04281578858 | H45: 0.04369426587 | I45: 0.6796795727 | J45: 0.6936249673 | L45: 0.02765153133 | M45: 0.03695607383 | N45: 0.5866594847 | P45: 0.04369426587 | Q45: 0.6936249673
B46: 2022-07-25 | C46: 1070 | E46: -0.01924839597 | F46: -0.01943605838 | G46: =STDEV(E46:E66) -> 0.04241287118 | H46: 0.0432684104 | I46: 0.6732834572 | J46: 0.6868647213 | L46: -0.01943605838 | M46: 0.03667320597 | N46: 0.5821690967 | P46: 0.0432684104 | Q46: 0.6868647213
B47: 2022-07-22 | C47: 1091 | E47: -0.00998185118 | F47: -0.01003200388 | G47: =STDEV(E47:E67) -> 0.04226519282 | H47: 0.04313579837 | I47: 0.670939136 | J47: 0.6847595706 | L47: -0.01003200388 | M47: 0.03674890248 | N47: 0.5833707416 | P47: 0.04313579837 | Q47: 0.6847595706
B48: 2022-07-21 | C48: 1102 | E48: -0.0009066183137 | F48: -0.0009070295406 | G48: =STDEV(E48:E68) -> 0.04233160018 | H48: 0.04319631723 | I48: 0.6719933201 | J48: 0.6857202776 | L48: -0.0009070295406 | M48: 0.03693234805 | N48: 0.5862828497 | P48: 0.04319631723 | Q48: 0.6857202776
B49: 2022-07-20 | C49: 1103 | E49: -0.01955555556 | F49: -0.01974929539 | G49: =STDEV(E49:E69) -> 0.04271797383 | H49: 0.04359150486 | I49: 0.6781268116 | J49: 0.6919936868 | L49: -0.01974929539 | M49: 0.03709995228 | N49: 0.5889434842 | P49: 0.04359150486 | Q49: 0.6919936868
B50: 2022-07-19 | C50: 1125 | E50: 0.02272727273 | F50: 0.02247285585 | G50: =STDEV(E50:E70) -> 0.04263786109 | H50: 0.04351550429 | I50: 0.6768550613 | J50: 0.6907872151 | L50: 0.02247285585 | M50: 0.03698100751 | N50: 0.5870552946 | P50: 0.04351550429 | Q50: 0.6907872151
B51: 2022-07-18 | C51: 1100 | E51: 0.04662226451 | F51: 0.04556808791 | G51: =STDEV(E51:E71) -> 0.04226349862 | H51: 0.04313222564 | I51: 0.6709122413 | J51: 0.6847028553 | L51: 0.04556808791 | M51: 0.03678608911 | N51: 0.5839610609 | P51: 0.04313222564 | Q51: 0.6847028553
B52: 2022-07-15 | C52: 1051 | E52: 0.0263671875 | F52: 0.02602556528 | G52: =STDEV(E52:E72) -> 0.04076480258 | H52: 0.04168652027 | I52: 0.6471211792 | J52: 0.661752994 | L52: 0.02602556528 | M52: 0.03595907473 | N52: 0.5708326147 | P52: 0.04168652027 | Q52: 0.661752994
B53: 2022-07-14 | C53: 1024 | E53: 0.0009775171065 | F53: 0.0009770396478 | G53: =STDEV(E53:E73) -> 0.04024355459 | H53: 0.04117121448 | I53: 0.6388466239 | J53: 0.6535727681 | L53: 0.0009770396478 | M53: 0.03567059438 | N53: 0.5662531311 | P53: 0.04117121448 | Q53: 0.6535727681
B54: 2022-07-13 | C54: 1023 | E54: -0.01539942252 | F54: -0.01551922515 | G54: =STDEV(E54:E74) -> 0.04021209265 | H54: 0.04113281425 | I54: 0.6383471811 | J54: 0.6529631834 | L54: -0.01551922515 | M54: 0.03594882275 | N54: 0.5706698695 | P54: 0.04113281425 | Q54: 0.6529631834
B55: 2022-07-12 | C55: 1039 | E55: 0.01862745098 | F55: 0.01845608482 | G55: =STDEV(E55:E75) -> 0.04031599147 | H55: 0.04123099817 | I55: 0.6399965238 | J55: 0.6545218047 | L55: 0.01845608482 | M55: 0.03593930809 | N55: 0.5705188289 | P55: 0.04123099817 | Q55: 0.6545218047
B56: 2022-07-11 | C56: 1020 | E56: 0.01290963257 | F56: 0.01282701356 | G56: =STDEV(E56:E76) -> 0.04025832998 | H56: 0.0411740807 | I56: 0.639081176 | J56: 0.6536182679 | L56: 0.01282701356 | M56: 0.03574507284 | N56: 0.56743544 | P56: 0.0411740807 | Q56: 0.6536182679
B57: 2022-07-08 | C57: 1007 | E57: -0.001982160555 | F57: -0.001984127635 | G57: =STDEV(E57:E77) -> 0.04042050813 | H57: 0.0413350298 | I57: 0.6416556742 | J57: 0.6561732557 | L57: -0.001984127635 | M57: 0.03563552105 | N57: 0.5656963593 | P57: 0.0413350298 | Q57: 0.6561732557
B58: 2022-07-07 | C58: 1009 | E58: 0.07914438503 | F58: 0.07616849106 | G58: =STDEV(E58:E78) -> 0.04074638459 | H58: 0.0416686902 | I58: 0.6468288027 | J58: 0.6614699503 | L58: 0.07616849106 | M58: 0.03571191971 | N58: 0.5669091503 | P58: 0.0416686902 | Q58: 0.6614699503
B59: 2022-07-04 | C59: 935 | E59: -0.03608247423 | F59: -0.03674954221 | G59: =STDEV(E59:E79) -> 0.03605471372 | H59: 0.03736322668 | I59: 0.5723508365 | J59: 0.5931228359 | L59: -0.03674954221 | M59: 0.03294550714 | N59: 0.5229937123 | P59: 0.03736322668 | Q59: 0.5931228359
B60: 2022-07-01 | C60: 970 | E60: -0.08748824083 | F60: -0.09155430684 | G60: =STDEV(E60:E80) -> 0.03553268808 | H60: 0.03685673297 | I60: 0.5640639364 | J60: 0.5850824975 | L60: -0.09155430684 | M60: 0.0334096907 | N60: 0.5303623978 | P60: 0.03685673297 | Q60: 0.5850824975
B61: 2022-06-30 | C61: 1063 | E61: -0.03887884268 | F61: -0.03965480374 | G61: =STDEV(E61:E81) -> 0.03096745608 | H61: 0.03203790763 | I61: 0.4915931252 | J61: 0.5085860167 | L61: -0.03965480374 | M61: 0.03028843596 | N61: 0.4808140149 | P61: 0.03203790763 | Q61: 0.5085860167
B62: 2022-06-29 | C62: 1106 | E62: 0.01374885426 | F62: 0.01365519625 | G62: =STDEV(E62:E82) -> 0.02997459275 | H62: 0.03106926363 | I62: 0.4758319084 | J62: 0.4932092699 | L62: 0.01365519625 | M62: 0.0294676372 | N62: 0.4677842385 | P62: 0.03106926363 | Q62: 0.4932092699
B63: 2022-06-28 | C63: 1091 | E63: 0.04401913876 | F63: 0.04307782143 | G63: =STDEV(E63:E83) -> 0.03021516202 | H63: 0.03130104016 | I63: 0.4796508272 | J63: 0.4968886083 | L63: 0.04307782143 | M63: 0.03260861895 | N63: 0.5176457781 | P63: 0.03130104016 | Q63: 0.4968886083
B64: 2022-06-27 | C64: 1045 | E64: -0.1091219096 | F64: -0.1155476843 | G64: =STDEV(E64:E84) -> 0.02863986725 | H64: 0.02982836603 | I64: 0.4546437979 | J64: 0.4735106311 | L64: -0.1155476843 | M64: 0.03165670654 | N64: 0.5025346369 | P64: 0.02982836603 | Q64: 0.4735106311
B65: 2022-06-24 | C65: 1173 | E65: 0.01295336788 | F65: 0.01287019052 | G65: =STDEV(E65:E85) -> 0.01463801683 | H65: 0.01462058669 | I65: 0.2323713134 | J65: 0.2320946184 | L65: 0.01287019052 | M65: 0.02289063821 | N65: 0.3633776163 | P65: 0.01462058669 | Q65: 0.2320946184
B66: 2022-06-23 | C66: 1158 | E66: -0.0186440678 | F66: -0.01882005933 | G66: =STDEV(E66:E86) -> 0.01449652647 | H66: 0.01447697183 | I66: 0.2301252236 | J66: 0.2298148032 | L66: -0.01882005933 | M66: 0.02293207435 | N66: 0.3640353946 | P66: 0.01447697183 | Q66: 0.2298148032
B67: 2022-06-22 | C67: 1180 | E67: -0.004219409283 | F67: -0.00422833611 | G67: =STDEV(E67:E87) -> 0.01368848631 | H67: 0.01366284402 | I67: 0.2172979836 | J67: 0.2168909249 | L67: -0.00422833611 | M67: 0.02256995776 | N67: 0.358286972 | P67: 0.01366284402 | Q67: 0.2168909249
B68: 2022-06-21 | C68: 1185 | E68: -0.0157807309 | F68: -0.0159065723 | G68: =STDEV(E68:E88) -> 0.01597584015 | H68: 0.01601332422 | I68: 0.2536086002 | J68: 0.2542036413 | L68: -0.0159065723 | M68: 0.02255319694 | N68: 0.3580209022 | P68: 0.01601332422 | Q68: 0.2542036413
B69: 2022-06-20 | C69: 1204 | E69: 0.02293967715 | F69: 0.02268051861 | G69: =STDEV(E69:E89) -> 0.01907091575 | H69: 0.01923849012 | I69: 0.3027414021 | J69: 0.3054015628 | L69: 0.02268051861 | M69: 0.0222258822 | N69: 0.3528249419 | P69: 0.01923849012 | Q69: 0.3054015628
B70: 2022-06-17 | C70: 1177 | E70: =C70/C71-1 -> -0.01506276151 | F70: =LN(C70/C71) -> -0.01517735711 | G70: =STDEV(E70:E90) -> 0.02034390972 | H70: 0.02045058883 | I70: =G70*SQRT(252) -> 0.3229495549 | J70: =H70*SQRT(252) -> 0.3246430333 | L70: =LN(C70/C71) -> -0.01517735711 | M70: =STDEV(L70:L99) -> 0.0222219471 | N70: =M70*SQRT(252) -> 0.352762474 | P70: =STDEV(L70:L90) -> 0.02045058883 | Q70: =P70*SQRT(252) -> 0.3246430333
B71: 2022-06-16 | C71: 1195 | E71: -0.0008361204013 | F71: -0.000836470145 | G71: =STDEV(E71:E91) -> 0.01996639848 | H71: 0.02008039212 | I71: 0.3169567498 | J71: 0.3187663427 | L71: -0.000836470145 | M71: 0.02214207259 | N71: 0.3514945056 | P71: 0.02008039212 | Q71: 0.3187663427
B72: 2022-06-15 | C72: 1196 | E72: 0.005042016807 | F72: 0.005029348405 | G72: =STDEV(E72:E92) -> 0.02601136002 | H72: 0.02570980818 | I72: 0.4129175392 | J72: 0.4081305522 | L72: 0.005029348405 | M72: 0.02211817701 | N72: 0.351115175 | P72: 0.02570980818 | Q72: 0.4081305522
B73: 2022-06-14 | C73: 1190 | E73: 0.007620660457 | F73: 0.007591769908 | G73: =STDEV(E73:E93) -> 0.02604259565 | H73: 0.02573867912 | I73: 0.4134133895 | J73: 0.4085888641 | L73: 0.007591769908 | M73: 0.02216049741 | N73: 0.3517869905 | P73: 0.02573867912 | Q73: 0.4085888641
B74: 2022-06-13 | C74: 1181 | E74: -0.006728343146 | F74: -0.006751080493 | G74: =STDEV(E74:E94) -> 0.02604206604 | H74: 0.02573764773 | I74: 0.4134049822 | J74: 0.4085724913 | L74: -0.006751080493 | M74: 0.02218340791 | N74: 0.3521506833 | P74: 0.02573764773 | Q74: 0.4085724913
B75: 2022-06-10 | C75: 1189 | E75: -0.02220394737 | F75: -0.02245416584 | G75: =STDEV(E75:E95) -> 0.02591797518 | H75: 0.02562441733 | I75: 0.4114351009 | J75: 0.4067750145 | L75: -0.02245416584 | M75: 0.02233766461 | N75: 0.3545994326 | P75: 0.02562441733 | Q75: 0.4067750145
B76: 2022-06-09 | C76: 1216 | E76: 0.01672240803 | F76: 0.01658412802 | G76: =STDEV(E76:E96) -> 0.02515120249 | H76: 0.02484595086 | I76: 0.3992629618 | J76: 0.3944172424 | L76: 0.01658412802 | M76: 0.02183706291 | N76: 0.3466526269 | P76: 0.02484595086 | Q76: 0.3944172424
B77: 2022-06-08 | C77: 1196 | E77: 0.01873935264 | F77: 0.01856593412 | G77: =STDEV(E77:E97) -> 0.02520726795 | H77: 0.02489217878 | I77: 0.4001529734 | J77: 0.3951510879 | L77: 0.01856593412 | M77: 0.02186201846 | N77: 0.3470487841 | P77: 0.02489217878 | Q77: 0.3951510879
B78: 2022-06-07 | C78: 1174 | E78: 0.01733102253 | F78: 0.01718255332 | G78: =STDEV(E78:E98) -> 0.02509583741 | H78: 0.02477773956 | I78: 0.3983840683 | J78: 0.3933344215 | L78: 0.01718255332 | M78: 0.02173897931 | N78: 0.345095598 | P78: 0.02477773956 | Q78: 0.3933344215
B79: 2022-06-06 | C79: 1154 | E79: 0.008741258741 | F79: 0.008703275128 | G79: =STDEV(E79:E99) -> 0.02523066682 | H79: 0.02491291855 | I79: 0.4005244189 | J79: 0.3954803216 | L79: 0.008703275128 | M79: 0.02168087416 | N79: 0.3441732075 | P79: 0.02491291855 | Q79: 0.3954803216
B80: 2022-06-03 | C80: 1144 | E80: -0.01294219154 | F80: -0.0130266714 | G80: =STDEV(E80:E100) -> 0.0256116715 | H80: 0.02528813212 | I80: 0.4065726806 | J80: 0.4014366522 | L80: -0.0130266714 | M80: 0.02197822326 | N80: 0.348893478 | P80: 0.02528813212 | Q80: 0.4014366522
B81: 2022-06-02 | C81: 1159 | E81: 0.02114537445 | F81: 0.02092491342 | G81: =STDEV(E81:E101) -> 0.02524254614 | H81: 0.02492067084 | I81: 0.4007129973 | J81: 0.3956033853 | L81: 0.02092491342 | M81: 0.02181776219 | N81: 0.3463462376 | P81: 0.02492067084 | Q81: 0.3956033853
B82: 2022-06-01 | C82: 1135 | E82: 0.01248884924 | F82: 0.01241150684 | G82: =STDEV(E82:E102) -> 0.02511143382 | H82: 0.02477972138 | I82: 0.3986316537 | J82: 0.3933658819 | L82: 0.01241150684 | M82: 0.02161530108 | N82: 0.343132267 | P82: 0.02477972138 | Q82: 0.3933658819
B83: 2022-05-31 | C83: 1121 | E83: 0.02187784868 | F83: 0.0216419628 | G83: =STDEV(E83:E103) -> 0.02510176617 | H83: 0.02476963229 | I83: 0.3984781845 | J83: 0.3932057226 | L83: 0.0216419628 | M83: 0.0215704916 | N83: 0.3424209386 | P83: 0.02476963229 | Q83: 0.3932057226
B84: 2022-05-30 | C84: 1097 | E84: 0.01105990783 | F84: 0.0109991943 | G84: =STDEV(E84:E104) -> 0.02517470784 | H84: 0.02483279486 | I84: 0.3996360977 | J84: 0.3942083974 | L84: 0.0109991943 | M84: 0.02169252345 | N84: 0.3443581342 | P84: 0.02483279486 | Q84: 0.3942083974
B85: 2022-05-27 | C85: 1085 | E85: -0.004587155963 | F85: -0.004597709249 | G85: =STDEV(E85:E105) -> 0.02525256819 | H85: 0.02490208225 | I85: 0.4008720924 | J85: 0.3953083006 | L85: -0.004597709249 | M85: 0.0217125369 | N85: 0.3446758378 | P85: 0.02490208225 | Q85: 0.3953083006
B86: 2022-05-26 | C86: 1090 | E86: 0 | F86: 0 | G86: =STDEV(E86:E106) -> 0.02536257393 | H86: 0.02502287998 | I86: 0.4026183794 | J86: 0.3972259051 | L86: 0 | M86: 0.02181853482 | N86: 0.3463585026 | P86: 0.02502287998 | Q86: 0.3972259051
B87: 2022-05-25 | C87: 1090 | E87: 0.01019462465 | F87: 0.01014300997 | G87: =STDEV(E87:E107) -> 0.02533863604 | H87: 0.02500237352 | I87: 0.4022383771 | J87: 0.3969003751 | L87: 0.01014300997 | M87: 0.02183258154 | N87: 0.3465814874 | P87: 0.02500237352 | Q87: 0.3969003751
B88: 2022-05-24 | C88: 1079 | E88: -0.03401969561 | F88: -0.03461183381 | G88: =STDEV(E88:E108) -> 0.02537976047 | H88: 0.02504509802 | I88: 0.4028912072 | J88: 0.3975786055 | L88: -0.03461183381 | M88: 0.0218355074 | N88: 0.346627934 | P88: 0.02504509802 | Q88: 0.3975786055
B89: 2022-05-23 | C89: 1117 | E89: -0.04774083546 | F89: -0.04891804958 | G89: =STDEV(E89:E109) -> 0.02418392607 | H89: 0.02379979453 | I89: 0.3839079246 | J89: 0.3778100255 | L89: -0.04891804958 | M89: 0.02080136266 | N89: 0.3302113952 | P89: 0.02379979453 | Q89: 0.3778100255
B90: 2022-05-20 | C90: 1173 | E90: 0.03989361702 | F90: 0.0391184166 | G90: =STDEV(E90:E110) -> 0.0210337996 | H90: 0.02045963221 | I90: 0.3339012172 | J90: 0.3247865925 | L90: 0.0391184166 | M90: 0.01830700806 | N90: 0.2906147434 | P90: 0.02045963221 | Q90: 0.3247865925
B91: 2022-05-19 | C91: 1128 | E91: 0.006244424621 | F91: 0.006225008986 | G91: =STDEV(E91:E111) -> 0.01974902859 | H91: 0.01918195787 | I91: 0.3135061097 | J91: 0.3045041411 | L91: 0.006225008986 | M91: 0.01737581021 | N91: 0.2758324358 | P91: 0.01918195787 | Q91: 0.3045041411
B92: 2022-05-18 | C92: 1121 | E92: 0.07996146435 | F92: 0.07692535935 | G92: =STDEV(E92:E112) -> 0.01977426092 | H92: 0.01920577071 | I92: 0.3139066605 | J92: 0.3048821581 | L92: 0.07692535935 | M92: 0.01746736844 | N92: 0.2772858777 | P92: 0.01920577071 | Q92: 0.3048821581
B93: 2022-05-17 | C93: 1038 | E93: 0.0009643201543 | F93: 0.0009638554963 | G93: =STDEV(E93:E113) -> 0.0112855376 | H93: 0.01126521453 | I93: 0.1791523554 | J93: 0.1788297367 | L93: 0.0009638554963 | M93: 0.01121374066 | N93: 0.1780126143 | P93: 0.01126521453 | Q93: 0.1788297367
B94: 2022-05-16 | C94: 1037 | E94: 0.006796116505 | F94: 0.006773127006 | G94: =STDEV(E94:E114) -> 0.01144341832 | H94: 0.01142210616 | I94: 0.1816586342 | J94: 0.1813203141 | L94: 0.006773127006 | M94: 0.01163339787 | N94: 0.1846744661 | P94: 0.01142210616 | Q94: 0.1813203141
B95: 2022-05-13 | C95: 1030 | E95: 0.0157790927 | F95: 0.01565589707 | G95: =STDEV(E95:E115) -> 0.01186964105 | H95: 0.01184366839 | I95: 0.1884247103 | J95: 0.1880124071 | L95: 0.01565589707 | M95: 0.01278906105 | N95: 0.2030200503 | P95: 0.01184366839 | Q95: 0.1880124071
B96: 2022-05-12 | C96: 1014 | E96: -0.003929273084 | F96: -0.003937012959 | G96: =STDEV(E96:E116) -> 0.01154811418 | H96: 0.01152577526 | I96: 0.1833206294 | J96: 0.18296601 | L96: -0.003937012959 | M96: 0.01357984689 | N96: 0.2155733863 | P96: 0.01152577526 | Q96: 0.18296601
B97: 2022-05-11 | C97: 1018 | E97: -0.002938295788 | F97: -0.002942621054 | G97: =STDEV(E97:E117) -> 0.01155094498 | H97: 0.01152859359 | I97: 0.1833655669 | J97: 0.1830107496 | L97: -0.002942621054 | M97: 0.01354521351 | N97: 0.2150235985 | P97: 0.01152859359 | Q97: 0.1830107496
B98: 2022-05-10 | C98: 1021 | E98: 0.01089108911 | F98: 0.01083220833 | G98: =STDEV(E98:E118) -> 0.0120449608 | H98: 0.01201867133 | I98: 0.191207825 | J98: 0.1907904925 | L98: 0.01083220833 | M98: 0.01355592209 | N98: 0.2151935919 | P98: 0.01201867133 | Q98: 0.1907904925
B99: 2022-05-09 | C99: 1010 | E99: 0.02278481013 | F99: 0.02252911306 | G99: =STDEV(E99:E119) -> 0.01244436191 | H99: 0.01241177428 | I99: 0.1975481211 | J99: 0.1970308084 | L99: 0.02252911306 | M99: 0.0135455421 | N99: 0.2150288147 | P99: 0.01241177428 | Q99: 0.1970308084
B100: 2022-05-06 | C100: 987.5 | E100: -0.0125 | F100: -0.01257878221 | G100: =STDEV(E100:E120) -> 0.01166604086 | H100: 0.01164567577 | I100: 0.1851926574 | J100: 0.1848693716 | L100: -0.01257878221 | M100: 0.01325869357 | N100: 0.2104752354 | P100: 0.01164567577 | Q100: 0.1848693716
B101: 2022-05-05 | C101: 1000 | E101: 0.002004008016 | F101: 0.002002002671 | G101: =STDEV(E101:E121) -> 0.0115722806 | H101: 0.01154811353 | I101: 0.1837042594 | J101: 0.183320619 | L101: 0.002002002671 | M101: 0.01291808477 | N101: 0.2050682383 | P101: 0.01154811353 | Q101: 0.183320619
B102: 2022-05-04 | C102: 998 | E102: -0.001500750375 | F102: -0.001501877629 | G102: =STDEV(E102:E122) -> 0.01163434278 | H102: 0.01160902467 | I102: 0.1846894659 | J102: 0.1842875535 | L102: -0.001501877629 | M102: 0.01297292863 | N102: 0.2059388577 | P102: 0.01160902467 | Q102: 0.1842875535
B103: 2022-05-03 | C103: 999.5 | E103: 0.01163967611 | F103: 0.01157245619 | G103: =STDEV(E103:E123) -> 0.01221762505 | H103: 0.01218532209 | I103: 0.193948785 | J103: 0.1934359913 | L103: 0.01157245619 | M103: 0.01314986354 | N103: 0.2087476122 | P103: 0.01218532209 | Q103: 0.1934359913
B104: 2022-05-02 | C104: 988 | E104: -0.01298701299 | F104: -0.01307208157 | G104: =STDEV(E104:E124) -> 0.01375860246 | H104: 0.01368071062 | I104: 0.218411043 | J104: 0.2171745483 | L104: -0.01307208157 | M104: 0.0133645126 | N104: 0.2121550605 | P104: 0.01368071062 | Q104: 0.2171745483
B105: 2022-04-29 | C105: 1001 | E105: -0.006944444444 | F105: -0.006968669316 | G105: =STDEV(E105:E125) -> 0.01437037731 | H105: 0.01426086987 | I105: 0.2281226676 | J105: 0.2263842909 | L105: -0.006968669316 | M105: 0.01297078184 | N105: 0.2059047784 | P105: 0.01426086987 | Q105: 0.2263842909
B106: 2022-04-28 | C106: 1008 | E106: 0.01818181818 | F106: 0.0180185055 | G106: =STDEV(E106:E126) -> 0.01418095614 | H106: 0.01407085149 | I106: 0.2251156998 | J106: 0.2233678427 | L106: 0.0180185055 | M106: 0.01278267129 | N106: 0.202918616 | P106: 0.01407085149 | Q106: 0.2233678427
B107: 2022-04-27 | C107: 990 | E107: 0.006097560976 | F107: 0.006079046076 | G107: =STDEV(E107:E127) -> 0.0141231508 | H107: 0.01401062292 | I107: 0.2241980685 | J107: 0.2224117437 | L107: 0.006079046076 | M107: 0.01269520245 | N107: 0.2015300911 | P107: 0.01401062292 | Q107: 0.2224117437
B108: 2022-04-26 | C108: 984 | E108: 0.01338825953 | F108: 0.01329942876 | G108: =STDEV(E108:E128) -> 0.01418576977 | H108: 0.01407133891 | I108: 0.2251921138 | J108: 0.2233755802 | L108: 0.01329942876 | M108: 0.01287404405 | N108: 0.2043691135 | P108: 0.01407133891 | Q108: 0.2233755802
B109: 2022-04-25 | C109: 971 | E109: -0.01421319797 | F109: -0.01431517288 | G109: =STDEV(E109:E129) -> 0.01421830523 | H109: 0.0141037469 | I109: 0.2257085983 | J109: 0.223890041 | L109: -0.01431517288 | M109: 0.01282415076 | N109: 0.2035770822 | P109: 0.0141037469 | Q109: 0.223890041
B110: 2022-04-22 | C110: 985 | E110: -0.006054490414 | F110: -0.006072893158 | G110: =STDEV(E110:E130) -> 0.01358399806 | H110: 0.01346147047 | I110: 0.215639284 | J110: 0.2136942188 | L110: -0.006072893158 | M110: 0.01238610435 | N110: 0.196623311 | P110: 0.01346147047 | Q110: 0.2136942188
B111: 2022-04-21 | C111: 991 | E111: 0.005070993915 | F111: 0.005058179727 | G111: =STDEV(E111:E131) -> 0.01332722859 | H111: 0.01320740884 | I111: 0.2115631951 | J111: 0.2096611156 | L111: 0.005058179727 | M111: 0.01311431192 | N111: 0.2081832477 | P111: 0.01320740884 | Q111: 0.2096611156
B112: 2022-04-20 | C112: 986 | E112: 0.002032520325 | F112: 0.00203045755 | G112: =STDEV(E112:E132) -> 0.01374542373 | H112: 0.01362568589 | I112: 0.2182018372 | J112: 0.2163010579 | L112: 0.00203045755 | M112: 0.01427634714 | N112: 0.226629985 | P112: 0.01362568589 | Q112: 0.2163010579
B113: 2022-04-19 | C113: 984 | E113: -0.01796407186 | F113: -0.01812738459 | G113: =STDEV(E113:E133) -> 0.01418232582 | H113: 0.01406433854 | I113: 0.2251374428 | J113: 0.2232644527 | L113: -0.01812738459 | M113: 0.01711953771 | N113: 0.2717642361 | P113: 0.01406433854 | Q113: 0.2232644527
B114: 2022-04-14 | C114: 1002 | E114: -0.006937561943 | F114: -0.006961738709 | G114: =STDEV(E114:E134) -> 0.01306612018 | H114: 0.01293342058 | I114: 0.2074182276 | J114: 0.2053116868 | L114: -0.006961738709 | M114: 0.01894820934 | N114: 0.3007934983 | P114: 0.01293342058 | Q114: 0.2053116868
B115: 2022-04-13 | C115: 1009 | E115: 0.01662468514 | F115: 0.01648800779 | G115: =STDEV(E115:E135) -> 0.01270879706 | H115: 0.01257492144 | I115: 0.2017458989 | J115: 0.1996206892 | L115: 0.01648800779 | M115: 0.01887170695 | N115: 0.2995790604 | P115: 0.01257492144 | Q115: 0.1996206892
B116: 2022-04-12 | C116: 992.5 | E116: 0.008638211382 | F116: 0.008601115509 | G116: =STDEV(E116:E136) -> 0.01284822421 | H116: 0.01271263472 | I116: 0.2039592363 | J116: 0.2018068198 | L116: 0.008601115509 | M116: 0.02032191646 | N116: 0.3226004227 | P116: 0.01271263472 | Q116: 0.2018068198
B117: 2022-04-11 | C117: 984 | E117: -0.004048582996 | F117: -0.004056800696 | G117: =STDEV(E117:E137) -> 0.01301782111 | H117: 0.01288240518 | I117: 0.2066515036 | J117: 0.2045018423 | L117: -0.004056800696 | M117: 0.02069853192 | N117: 0.3285790077 | P117: 0.01288240518 | Q117: 0.2045018423
B118: 2022-04-08 | C118: 988 | E118: 0.0180319423 | F118: 0.01787129514 | G118: =STDEV(E118:E138) -> 0.01277720771 | H118: 0.01264430215 | I118: 0.2028318843 | J118: 0.200722074 | L118: 0.01787129514 | M118: 0.0206408186 | N118: 0.3276628372 | P118: 0.01264430215 | Q118: 0.200722074
B119: 2022-04-07 | C119: 970.5 | E119: 0.0188976378 | F119: 0.01872129561 | G119: =STDEV(E119:E139) -> 0.01274351894 | H119: 0.01260877588 | I119: 0.2022970916 | J119: 0.200158112 | L119: 0.01872129561 | M119: 0.02091637304 | N119: 0.3320371284 | P119: 0.01260877588 | Q119: 0.200158112
B120: 2022-04-06 | C120: 952.5 | E120: -0.004702194357 | F120: -0.004713284452 | G120: =STDEV(E120:E140) -> 0.01369630707 | H120: 0.01353600086 | I120: 0.2174221343 | J120: 0.2148773521 | L120: -0.004713284452 | M120: 0.02228108407 | N120: 0.3537012443 | P120: 0.01353600086 | Q120: 0.2148773521
B121: 2022-04-05 | C121: 957 | E121: 0.01538461538 | F121: 0.01526747213 | G121: =STDEV(E121:E141) -> 0.01492336314 | H121: 0.01472407341 | I121: 0.2369010455 | J121: 0.2337374192 | L121: 0.01526747213 | M121: 0.02281935817 | N121: 0.3622460808 | P121: 0.01472407341 | Q121: 0.2337374192
B122: 2022-04-04 | C122: 942.5 | E122: -0.002645502646 | F122: -0.002649008172 | G122: =STDEV(E122:E142) -> 0.01878297495 | H122: 0.01873454178 | I122: 0.2981704836 | J122: 0.2974016309 | L122: -0.002649008172 | M122: 0.02272924147 | N122: 0.3608155225 | P122: 0.01873454178 | Q122: 0.2974016309
B123: 2022-04-01 | C123: 945 | E123: 0.02051835853 | F123: 0.02031069285 | G123: =STDEV(E123:E143) -> 0.02166514138 | H123: 0.02171238968 | I123: 0.3439234573 | J123: 0.3446735008 | L123: 0.02031069285 | M123: 0.02317230464 | N123: 0.3678489323 | P123: 0.02171238968 | Q123: 0.3446735008
B124: 2022-03-31 | C124: 926 | E124: 0.03348214286 | F124: 0.03293382167 | G124: =STDEV(E124:E144) -> 0.02148036161 | H124: 0.02153003513 | I124: 0.3409901693 | J124: 0.3417787121 | L124: 0.03293382167 | M124: 0.02295852132 | N124: 0.3644552273 | P124: 0.02153003513 | Q124: 0.3417787121
B125: 2022-03-30 | C125: 896 | E125: 0.03225806452 | F125: 0.03174869831 | G125: =STDEV(E125:E145) -> 0.02218953807 | H125: 0.02229907874 | I125: 0.3522479966 | J125: 0.3539869009 | L125: 0.03174869831 | M125: 0.02227161652 | N125: 0.3535509516 | P125: 0.02229907874 | Q125: 0.3539869009
B126: 2022-03-29 | C126: 868 | E126: -0.002298850575 | F126: -0.002301496988 | G126: =STDEV(E126:E146) -> 0.02180996424 | H126: 0.02193476598 | I126: 0.3462224489 | J126: 0.3482036151 | L126: -0.002301496988 | M126: 0.02152788346 | N126: 0.3417445554 | P126: 0.02193476598 | Q126: 0.3482036151
B127: 2022-03-28 | C127: 870 | E127: -0.003436426117 | F127: -0.003442344191 | G127: =STDEV(E127:E147) -> 0.02179748004 | H127: 0.02192444534 | I127: 0.3460242684 | J127: 0.34803978 | L127: -0.003442344191 | M127: 0.02158956323 | N127: 0.3427236913 | P127: 0.02192444534 | Q127: 0.34803978
B128: 2022-03-25 | C128: 873 | E128: 0 | F128: 0 | G128: =STDEV(E128:E148) -> 0.0225163433 | H128: 0.02263401348 | I128: 0.3574358688 | J128: 0.359303825 | L128: 0 | M128: 0.02179303195 | N128: 0.3459536571 | P128: 0.02263401348 | Q128: 0.359303825
B129: 2022-03-24 | C129: 873 | E129: 0.01452643812 | F129: 0.01442194019 | G129: =STDEV(E129:E149) -> 0.02426815512 | H129: 0.02442068842 | I129: 0.3852450193 | J129: 0.3876664104 | L129: 0.01442194019 | M129: 0.02179283041 | N129: 0.3459504577 | P129: 0.02442068842 | Q129: 0.3876664104
B130: 2022-03-23 | C130: 860.5 | E130: -0.001740139211 | F130: -0.001741655012 | G130: =STDEV(E130:E150) -> 0.02506604173 | H130: 0.02519540876 | I130: 0.3979110767 | J130: 0.3999647145 | L130: -0.001741655012 | M130: 0.02167821832 | N130: 0.3441310472 | P130: 0.02519540876 | Q130: 0.3999647145
B131: 2022-03-22 | C131: 862 | E131: 0.01233118027 | F131: 0.01225577056 | G131: =STDEV(E131:E151) -> 0.02505532873 | H131: 0.02518757113 | I131: 0.3977410129 | J131: 0.3998402961 | L131: 0.01225577056 | M131: 0.02184178914 | N131: 0.3467276535 | P131: 0.02518757113 | Q131: 0.3998402961
B132: 2022-03-21 | C132: 851.5 | E132: -0.008153756552 | F132: -0.008187180235 | G132: =STDEV(E132:E152) -> 0.02541832506 | H132: 0.02554010209 | I132: 0.403503401 | J132: 0.4054365515 | L132: -0.008187180235 | M132: 0.02192145474 | N132: 0.3479923058 | P132: 0.02554010209 | Q132: 0.4054365515
B133: 2022-03-18 | C133: 858.5 | E133: -0.009803921569 | F133: -0.009852296443 | G133: =STDEV(E133:E153) -> 0.02534519913 | H133: 0.02547172176 | I133: 0.4023425629 | J133: 0.4043510475 | L133: -0.009852296443 | M133: 0.02195648055 | N133: 0.3485483232 | P133: 0.02547172176 | Q133: 0.4043510475
B134: 2022-03-17 | C134: 867 | E134: =C134/C135-1 -> 0.00872600349 | F134: =LN(C134/C135) -> 0.008688151958 | G134: =STDEV(E134:E154) -> 0.0252637814 | H134: 0.02539294174 | I134: =G134*SQRT(252) -> 0.4010500966 | J134: =H134*SQRT(252) -> 0.4031004534 | L134: =LN(C134/C135) -> 0.008688151958 | M134: =STDEV(L134:L163) -> 0.02213739687 | N134: =M134*SQRT(252) -> 0.3514202807 | P134: =STDEV(L134:L154) -> 0.02539294174 | Q134: =P134*SQRT(252) -> 0.4031004534
B135: 2022-03-16 | C135: 859.5 | E135: 0.002332361516 | F135: 0.002329645783 | G135: =STDEV(E135:E155) -> 0.02520069026 | H135: 0.02532623507 | I135: 0.4000485557 | J135: 0.4020415179 | L135: 0.002329645783 | M135: 0.02210719113 | N135: 0.3509407795 | P135: 0.02532623507 | Q135: 0.4020415179
B136: 2022-03-15 | C136: 857.5 | E136: -0.005220417633 | F136: -0.005234091624 | G136: =STDEV(E136:E156) -> 0.02528389455 | H136: 0.02541272932 | I136: 0.4013693829 | J136: 0.4034145716 | L136: -0.005234091624 | M136: 0.02218918191 | N136: 0.3522423427 | P136: 0.02541272932 | Q136: 0.4034145716
B137: 2022-03-14 | C137: 862 | E137: 0.01650943396 | F137: 0.01637463487 | G137: =STDEV(E137:E157) -> 0.02551348019 | H137: 0.02563860661 | I137: 0.405013942 | J137: 0.4070002623 | L137: 0.01637463487 | M137: 0.02217955832 | N137: 0.352089573 | P137: 0.02563860661 | Q137: 0.4070002623
B138: 2022-03-11 | C138: 848 | E138: 0.01072705602 | F138: 0.01066992932 | G138: =STDEV(E138:E158) -> 0.02524669492 | H138: 0.02536788244 | I138: 0.4007788572 | J138: 0.4027026493 | L138: 0.01066992932 | M138: 0.02202231944 | N138: 0.3495934833 | P138: 0.02536788244 | Q138: 0.4027026493
B139: 2022-03-10 | C139: 839 | E139: -0.002378121284 | F139: -0.002380953506 | G139: =STDEV(E139:E159) -> 0.02516058567 | H139: 0.02527288116 | I139: 0.3994119151 | J139: 0.4011945508 | L139: -0.002380953506 | M139: 0.02197542208 | N139: 0.3488490107 | P139: 0.02527288116 | Q139: 0.4011945508
B140: 2022-03-09 | C140: 841 | E140: 0.03253529773 | F140: 0.03201723193 | G140: =STDEV(E140:E160) -> 0.02539402947 | H140: 0.02551225505 | I140: 0.4031177205 | J140: 0.4049944935 | L140: 0.03201723193 | M140: 0.02196968328 | N140: 0.3487579101 | P140: 0.02551225505 | Q140: 0.4049944935
B141: 2022-03-08 | C141: 814.5 | E141: 0.03824091778 | F141: 0.03752785587 | G141: =STDEV(E141:E161) -> 0.02456727228 | H141: 0.02471003 | I141: 0.3899933571 | J141: 0.3922595655 | L141: 0.03752785587 | M141: 0.02121259309 | N141: 0.3367394759 | P141: 0.02471003 | Q141: 0.3922595655
B142: 2022-03-07 | C142: 784.5 | E142: -0.04329268293 | F142: -0.04425776809 | G142: =STDEV(E142:E162) -> 0.02308620677 | H142: 0.02328163715 | I142: 0.3664821709 | J142: 0.369584532 | L142: -0.04425776809 | M142: 0.02007619559 | N142: 0.3186997248 | P142: 0.02328163715 | Q142: 0.369584532
B143: 2022-03-04 | C143: 820 | E143: -0.04317386231 | F143: -0.04413357834 | G143: =STDEV(E143:E163) -> 0.02160728909 | H143: 0.02174634546 | I143: 0.3430050807 | J143: 0.3452125321 | L143: -0.04413357834 | M143: 0.01871330898 | N143: 0.2970645706 | P143: 0.02174634546 | Q143: 0.3452125321
B144: 2022-03-03 | C144: 857 | E144: 0.01420118343 | F144: 0.01410129124 | G144: =STDEV(E144:E164) -> 0.01913725346 | H144: 0.0192062262 | I144: 0.3037944806 | J144: 0.3048893889 | L144: 0.01410129124 | M144: 0.0167306523 | N144: 0.2655908716 | P144: 0.0192062262 | Q144: 0.3048893889
B145: 2022-03-02 | C145: 845 | E145: -0.03648802737 | F145: -0.03717036502 | G145: =STDEV(E145:E165) -> 0.01909074013 | H145: 0.01916010018 | I145: 0.3030561044 | J145: 0.3041571611 | L145: -0.03717036502 | M145: 0.01656792071 | N145: 0.2630075876 | P145: 0.01916010018 | Q145: 0.3041571611
B146: 2022-03-01 | C146: 877 | E146: 0.02633118783 | F146: 0.02599048982 | G146: =STDEV(E146:E166) -> 0.01695108443 | H146: 0.0169639055 | I146: 0.2690901232 | J146: 0.2692936513 | L146: 0.02599048982 | M146: 0.01490082424 | N146: 0.2365432516 | P146: 0.0169639055 | Q146: 0.2692936513
B147: 2022-02-28 | C147: 854.5 | E147: 0.001758499414 | F147: 0.001756955064 | G147: =STDEV(E147:E167) -> 0.01619522611 | H147: 0.01622142617 | I147: 0.2570912442 | J147: 0.2575071574 | L147: 0.001756955064 | M147: 0.0142271792 | N147: 0.2258494681 | P147: 0.01622142617 | Q147: 0.2575071574
B148: 2022-02-25 | C148: 853 | E148: 0.02771084337 | F148: 0.0273338467 | G148: =STDEV(E148:E168) -> 0.0162503535 | H148: 0.01627460822 | I148: 0.2579663644 | J148: 0.2583513962 | L148: 0.0273338467 | M148: 0.01424226003 | N148: 0.2260888688 | P148: 0.01627460822 | Q148: 0.2583513962
B149: 2022-02-24 | C149: 830 | E149: -0.03879559931 | F149: -0.0395681968 | G149: =STDEV(E149:E169) -> 0.01523553645 | H149: 0.01528135414 | I149: 0.2418566432 | J149: 0.2425839766 | L149: -0.0395681968 | M149: 0.0133890473 | N149: 0.2125445367 | P149: 0.01528135414 | Q149: 0.2425839766
B150: 2022-02-23 | C150: 863.5 | E150: 0.03227734608 | F150: 0.03176737716 | G150: =STDEV(E150:E170) -> 0.01212181191 | H150: 0.01206347587 | I150: 0.1924277984 | J150: 0.1915017427 | L150: 0.03176737716 | M150: 0.01104456339 | N150: 0.1753270084 | P150: 0.01206347587 | Q150: 0.1915017427
B151: 2022-02-22 | C151: 836.5 | E151: 0.002997601918 | F151: 0.002993118068 | G151: =STDEV(E151:E171) -> 0.0102380395 | H151: 0.01023318402 | I151: 0.1625238385 | J151: 0.1624467602 | L151: 0.002993118068 | M151: 0.00959221715 | N151: 0.1522717266 | P151: 0.01023318402 | Q151: 0.1624467602
B152: 2022-02-21 | C152: 834 | E152: -0.02112676056 | F152: -0.02135312447 | G152: =STDEV(E152:E172) -> 0.01136787929 | H152: 0.01137799672 | I152: 0.1804594892 | J152: 0.1806200985 | L152: -0.02135312447 | M152: 0.009626947418 | N152: 0.1528230525 | P152: 0.01137799672 | Q152: 0.1806200985
B153: 2022-02-18 | C153: 852 | E153: 0 | F153: 0 | G153: =STDEV(E153:E173) -> 0.01015635616 | H153: 0.01014801908 | I153: 0.1612271557 | J153: 0.1610948088 | L153: 0 | M153: 0.008671344732 | N153: 0.1376533302 | P153: 0.01014801908 | Q153: 0.1610948088
B154: 2022-02-17 | C154: 852 | E154: -0.004672897196 | F154: -0.004683849312 | G154: =STDEV(E154:E174) -> 0.01015032628 | H154: 0.0101421423 | I154: 0.1611314343 | J154: 0.1610015178 | L154: -0.004683849312 | M154: 0.008749681965 | N154: 0.1388968952 | P154: 0.0101421423 | Q154: 0.1610015178
B155: 2022-02-16 | C155: 856 | E155: 0.001169590643 | F155: 0.001168907205 | G155: =STDEV(E155:E175) -> 0.01004882098 | H155: 0.01004121088 | I155: 0.1595200877 | J155: 0.1593992811 | L155: 0.001168907205 | M155: 0.008671933112 | N155: 0.1376626704 | P155: 0.01004121088 | Q155: 0.1593992811
B156: 2022-02-15 | C156: 855 | E156: 0.01004134672 | F156: 0.009991267364 | G156: =STDEV(E156:E176) -> 0.01004418571 | H156: 0.01003689826 | I156: 0.1594465051 | J156: 0.1593308204 | L156: 0.009991267364 | M156: 0.008727156912 | N156: 0.138539321 | P156: 0.01003689826 | Q156: 0.1593308204
B157: 2022-02-14 | C157: 846.5 | E157: -0.01569767442 | F157: -0.01582218767 | G157: =STDEV(E157:E177) -> 0.009936287226 | H157: 0.009927922119 | I157: 0.1577336697 | J157: 0.1576008778 | L157: -0.01582218767 | M157: 0.008814999989 | N157: 0.1399337867 | P157: 0.009927922119 | Q157: 0.1576008778
B158: 2022-02-11 | C158: 860 | E158: 0.000581733566 | F158: 0.0005815644246 | G158: =STDEV(E158:E178) -> 0.009078256893 | H158: 0.009060952934 | I158: 0.1441128605 | J158: 0.1438381686 | L158: 0.0005815644246 | M158: 0.00957763929 | N158: 0.1520403103 | P158: 0.009060952934 | Q158: 0.1438381686
B159: 2022-02-10 | C159: 859.5 | E159: -0.007505773672 | F159: -0.00753408374 | G159: =STDEV(E159:E179) -> 0.009139556375 | H159: 0.009121734446 | I159: 0.1450859596 | J159: 0.1448030452 | L159: -0.00753408374 | M159: 0.009619217943 | N159: 0.1527003509 | P159: 0.009121734446 | Q159: 0.1448030452
B160: 2022-02-09 | C160: 866 | E160: 0.01464557704 | F160: 0.01453936633 | G160: =STDEV(E160:E180) -> 0.008901636718 | H160: 0.008884532459 | I160: 0.1413091021 | J160: 0.1410375804 | L160: 0.01453936633 | M160: 0.00947810102 | N160: 0.1504601892 | P160: 0.008884532459 | Q160: 0.1410375804
B161: 2022-02-08 | C161: 853.5 | E161: 0.01607142857 | F161: 0.0159436504 | G161: =STDEV(E161:E181) -> 0.008639657142 | H161: 0.008625124153 | I161: 0.1371503053 | J161: 0.1369196012 | L161: 0.0159436504 | M161: 0.009170043002 | N161: 0.1455699198 | P161: 0.008625124153 | Q161: 0.1369196012
B162: 2022-02-07 | C162: 840 | E162: 0.01204819277 | F162: 0.01197619105 | G162: =STDEV(E162:E182) -> 0.008091325756 | H162: 0.008083023815 | I162: 0.1284458144 | J162: 0.1283140251 | L162: 0.01197619105 | M162: 0.009223477269 | N162: 0.1464181625 | P162: 0.008083023815 | Q162: 0.1283140251
B163: 2022-02-04 | C163: 830 | E163: 0.0209102091 | F163: 0.02069459124 | G163: =STDEV(E163:E183) -> 0.007850063171 | H163: 0.007843548525 | I163: 0.1246158896 | J163: 0.1245124728 | L163: 0.02069459124 | M163: 0.009252300927 | N163: 0.1468757238 | P163: 0.007843548525 | Q163: 0.1245124728
B164: 2022-02-03 | C164: 813 | E164: 0.004323656578 | F164: 0.00431433643 | G164: =STDEV(E164:E184) -> 0.006385809145 | H164: 0.006408483309 | I164: 0.1013715775 | J164: 0.1017315187 | L164: 0.00431433643 | M164: 0.008537093858 | N164: 0.1355221636 | P164: 0.006408483309 | Q164: 0.1017315187
B165: 2022-02-02 | C165: 809.5 | E165: 0.01250781739 | F165: 0.01243024084 | G165: =STDEV(E165:E185) -> 0.006352852987 | H165: 0.006374939644 | I165: 0.1008484147 | J165: 0.1011990295 | L165: 0.01243024084 | M165: 0.009445726974 | N165: 0.1499462671 | P165: 0.006374939644 | Q165: 0.1011990295
B166: 2022-02-01 | C166: 799.5 | E166: -0.004358655044 | F166: -0.004368181673 | G166: =STDEV(E166:E186) -> 0.00634186685 | H166: 0.006364174898 | I166: 0.1006740152 | J166: 0.1010281445 | L166: -0.004368181673 | M166: 0.009185458554 | N166: 0.1458146341 | P166: 0.006364174898 | Q166: 0.1010281445
B167: 2022-01-31 | C167: 803 | E167: 0.0006230529595 | F167: 0.0006228589426 | G167: =STDEV(E167:E187) -> 0.008257739895 | H167: 0.00831667628 | I167: 0.1310875569 | J167: 0.132023143 | L167: 0.0006228589426 | M167: 0.009176180965 | N167: 0.1456673569 | P167: 0.00831667628 | Q167: 0.132023143
B168: 2022-01-28 | C168: 802.5 | E168: -0.003105590062 | F168: -0.003110422414 | G168: =STDEV(E168:E188) -> 0.008258411514 | H168: 0.008316565266 | I168: 0.1310982186 | J168: 0.1320213807 | L168: -0.003110422414 | M168: 0.0092824066 | N168: 0.1473536366 | P168: 0.008316565266 | Q168: 0.1320213807
B169: 2022-01-27 | C169: 805 | E169: -0.001240694789 | F169: -0.001241465088 | G169: =STDEV(E169:E189) -> 0.00828236145 | H169: 0.008341270136 | I169: 0.131478412 | J169: 0.1324135584 | L169: -0.001241465088 | M169: 0.009318979335 | N169: 0.1479342108 | P169: 0.008341270136 | Q169: 0.1324135584
B170: 2022-01-26 | C170: 806 | E170: 0.004987531172 | F170: 0.00497513464 | G170: =STDEV(E170:E190) -> 0.008371474802 | H170: 0.008430577967 | I170: 0.1328930426 | J170: 0.1338312763 | L170: 0.00497513464 | M170: 0.009335857066 | N170: 0.1482021364 | P170: 0.008430577967 | Q170: 0.1338312763
B171: 2022-01-25 | C171: 802 | E171: 0.006905210295 | F171: 0.006881478516 | G171: =STDEV(E171:E191) -> 0.008812817069 | H171: 0.008874752774 | I171: 0.1398991339 | J171: 0.1408823327 | L171: 0.006881478516 | M171: 0.009298896383 | N171: 0.1476154038 | P171: 0.008874752774 | Q171: 0.1408823327
B172: 2022-01-24 | C172: 796.5 | E172: -0.02029520295 | F172: -0.0205039802 | G172: =STDEV(E172:E192) -> 0.009189058054 | H172: 0.009244582815 | I172: 0.1458717744 | J172: 0.1467532026 | L172: -0.0205039802 | M172: 0.009258405333 | N172: 0.1469726283 | P172: 0.009244582815 | Q172: 0.1467532026
B173: 2022-01-21 | C173: 813 | E173: 0 | F173: 0 | G173: =STDEV(E173:E193) -> 0.008372193145 | H173: 0.008413911649 | I173: 0.1329044459 | J173: 0.1335667067 | L173: 0 | M173: 0.009279138958 | N173: 0.1473017644 | P173: 0.008413911649 | Q173: 0.1335667067
B174: 2022-01-20 | C174: 813 | E174: 0.0006153846154 | F174: 0.0006151953439 | G174: =STDEV(E174:E194) -> 0.009746314439 | H174: 0.009758554601 | I174: 0.1547179452 | J174: 0.1549122518 | L174: 0.0006151953439 | M174: 0.01101023098 | N174: 0.1747819983 | P174: 0.009758554601 | Q174: 0.1549122518
B175: 2022-01-19 | C175: 812.5 | E175: -0.0006150061501 | F175: -0.0006151953439 | G175: =STDEV(E175:E195) -> 0.00979259784 | H175: 0.009803919681 | I175: 0.1554526714 | J175: 0.1556324001 | L175: -0.0006151953439 | M175: 0.01134413109 | N175: 0.1800824982 | P175: 0.009803919681 | Q175: 0.1556324001
B176: 2022-01-18 | C176: 813 | E176: 0.002466091245 | F176: 0.002463055432 | G176: =STDEV(E176:E196) -> 0.009832259691 | H176: 0.009842953452 | I176: 0.1560822838 | J176: 0.156252042 | L176: 0.002463055432 | M176: 0.0113331389 | N176: 0.1799080027 | P176: 0.009842953452 | Q176: 0.156252042
B177: 2022-01-17 | C177: 811 | E177: -0.001846153846 | F177: -0.001847860088 | G177: =STDEV(E177:E197) -> 0.009947886523 | H177: 0.009958671718 | I177: 0.1579178029 | J177: 0.1580890125 | L177: -0.001847860088 | M177: 0.01137709498 | N177: 0.1806057837 | P177: 0.009958671718 | Q177: 0.1580890125
B178: 2022-01-14 | C178: 812.5 | E178: 0.00123228589 | F178: 0.001231527249 | G178: =STDEV(E178:E198) -> 0.009992805192 | H178: 0.01000490868 | I178: 0.1586308646 | J178: 0.1588230015 | L178: 0.001231527249 | M178: 0.01143805748 | N178: 0.1815735335 | P178: 0.01000490868 | Q178: 0.1588230015
B179: 2022-01-13 | C179: 811.5 | E179: -0.0024585126 | F179: -0.002461539704 | G179: =STDEV(E179:E199) -> 0.01003012316 | H179: 0.01004123488 | I179: 0.1592232689 | J179: 0.1593996622 | L179: -0.002461539704 | M179: 0.0114800773 | N179: 0.1822405775 | P179: 0.01004123488 | Q179: 0.1593996622
B180: 2022-01-12 | C180: 813.5 | E180: 0.008054522924 | F180: 0.008022258389 | G180: =STDEV(E180:E200) -> 0.01002175773 | H180: 0.01003299529 | I180: 0.159090472 | J180: 0.1592688627 | L180: 0.008022258389 | M180: 0.01143855493 | N180: 0.1815814302 | P180: 0.01003299529 | Q180: 0.1592688627
B181: 2022-01-11 | C181: 807 | E181: -0.003703703704 | F181: -0.003710579397 | G181: =STDEV(E181:E201) -> 0.00996260232 | H181: 0.009972355516 | I181: 0.1581514089 | J181: 0.1583062361 | L181: -0.003710579397 | M181: 0.01187239542 | N181: 0.1884684344 | P181: 0.009972355516 | Q181: 0.1583062361
B182: 2022-01-10 | C182: 810 | E182: -0.001233045623 | F182: -0.001233806449 | G182: =STDEV(E182:E202) -> 0.01095841355 | H182: 0.01095152721 | I182: 0.1739594222 | J182: 0.1738501048 | L182: -0.001233806449 | M182: 0.01331109403 | N182: 0.2113070669 | P182: 0.01095152721 | Q182: 0.1738501048
B183: 2022-01-07 | C183: 811 | E183: -0.00490797546 | F183: -0.004920059125 | G183: =STDEV(E183:E203) -> 0.01305964485 | H183: 0.01299453404 | I183: 0.2073154349 | J183: 0.2062818329 | L183: -0.004920059125 | M183: 0.01337091848 | N183: 0.2122567505 | P183: 0.01299453404 | Q183: 0.2062818329
B184: 2022-01-06 | C184: 815 | E184: 0.00184388445 | F184: 0.001842186582 | G184: =STDEV(E184:E204) -> 0.01329105143 | H184: 0.01322633074 | I184: 0.2109889004 | J184: 0.2099614914 | L184: 0.001842186582 | M184: 0.01327382876 | N184: 0.2107154991 | P184: 0.01322633074 | Q184: 0.2099614914
B185: 2022-01-05 | C185: 813.5 | E185: -0.003674219228 | F185: -0.003680985751 | G185: =STDEV(E185:E205) -> 0.01328261138 | H185: 0.01321878852 | I185: 0.2108549189 | J185: 0.2098417623 | L185: -0.003680985751 | M185: 0.01329176028 | N185: 0.2110001531 | P185: 0.01321878852 | Q185: 0.2098417623
B186: 2022-01-04 | C186: 816.5 | E186: 0.01239925604 | F186: 0.01232301485 | G186: =STDEV(E186:E206) -> 0.01325488323 | H186: 0.01319116817 | I186: 0.2104147482 | J186: 0.2094033029 | L186: 0.01232301485 | M186: 0.01333382726 | N186: 0.2116679457 | P186: 0.01319116817 | Q186: 0.2094033029
B187: 2022-01-03 | C187: 806.5 | E187: -0.02478839178 | F187: -0.02510079746 | G187: =STDEV(E187:E207) -> 0.01320946772 | H187: 0.01314591051 | I187: 0.2096937992 | J187: 0.2086848598 | L187: -0.02510079746 | M187: 0.01351393809 | N187: 0.2145271166 | P187: 0.01314591051 | Q187: 0.2086848598
B188: 2021-12-30 | C188: 827 | E188: -0.003614457831 | F188: -0.003621005767 | G188: =STDEV(E188:E208) -> 0.01145520695 | H188: 0.01135273739 | I188: 0.1818457729 | J188: 0.180219119 | L188: -0.003621005767 | M188: 0.01247111356 | N188: 0.1979727903 | P188: 0.01135273739 | Q188: 0.180219119
B189: 2021-12-29 | C189: 830 | E189: 0.001810500905 | F189: 0.001808863924 | G189: =STDEV(E189:E209) -> 0.01125491891 | H189: 0.01115372145 | I189: 0.1786662987 | J189: 0.1770598388 | L189: 0.001808863924 | M189: 0.01245323466 | N189: 0.1976889716 | P189: 0.01115372145 | Q189: 0.1770598388
B190: 2021-12-28 | C190: 828.5 | E190: 0.004242424242 | F190: 0.004233450532 | G190: =STDEV(E190:E210) -> 0.0116974487 | H190: 0.01159225548 | I190: 0.1856912415 | J190: 0.1840213509 | L190: 0.004233450532 | M190: 0.01260556561 | N190: 0.2001071504 | P190: 0.01159225548 | Q190: 0.1840213509
B191: 2021-12-27 | C191: 825 | E191: -0.01551312649 | F191: -0.01563471415 | G191: =STDEV(E191:E211) -> 0.01412916988 | H191: 0.01408536642 | I191: 0.2242936184 | J191: 0.2235982601 | L191: -0.01563471415 | M191: 0.01297576005 | N191: 0.205983805 | P191: 0.01408536642 | Q191: 0.2235982601
B192: 2021-12-23 | C192: 838 | E192: 0.01268882175 | F192: 0.01260899323 | G192: =STDEV(E192:E212) -> 0.01332919685 | H192: 0.01328250589 | I192: 0.2115944402 | J192: 0.2108532442 | L192: 0.01260899323 | M192: 0.01324097376 | N192: 0.2101939421 | P192: 0.01328250589 | Q192: 0.2108532442
B193: 2021-12-22 | C193: 827.5 | E193: 0.007917174178 | F193: 0.007885997799 | G193: =STDEV(E193:E213) -> 0.01327103637 | H193: 0.01322267155 | I193: 0.2106711713 | J193: 0.2099034036 | L193: 0.007885997799 | M193: 0.01320662983 | N193: 0.2096487492 | P193: 0.01322267155 | Q193: 0.2099034036
B194: 2021-12-21 | C194: 821 | E194: 0.02241594022 | F194: 0.02216839551 | G194: =STDEV(E194:E214) -> 0.01327380858 | H194: 0.01322554483 | I194: 0.2107151787 | J194: 0.2099490154 | L194: 0.02216839551 | M194: 0.01336890468 | N194: 0.2122247825 | P194: 0.01322554483 | Q194: 0.2099490154
B195: 2021-12-20 | C195: 803 | E195: -0.003722084367 | F195: -0.00372902856 | G195: =STDEV(E195:E215) -> 0.01298792862 | H195: 0.01294457609 | I195: 0.2061769751 | J195: 0.205488775 | L195: -0.00372902856 | M195: 0.01297911602 | N195: 0.2060370793 | P195: 0.01294457609 | Q195: 0.205488775
B196: 2021-12-17 | C196: 806 | E196: -0.003708281829 | F196: -0.003715174552 | G196: =STDEV(E196:E216) -> 0.01332418084 | H196: 0.01328273787 | I196: 0.2115148135 | J196: 0.2108569268 | L196: -0.003715174552 | M196: 0.0129479529 | N196: 0.2055423801 | P196: 0.01328273787 | Q196: 0.2108569268
B197: 2021-12-16 | C197: 809 | E197: 0.007471980075 | F197: 0.007444203112 | G197: =STDEV(E197:E217) -> 0.01329477986 | H197: 0.01325348247 | I197: 0.2110480874 | J197: 0.2103925118 | L197: 0.007444203112 | M197: 0.01293425389 | N197: 0.2053249151 | P197: 0.01325348247 | Q197: 0.2103925118
B198: 2021-12-15 | C198: 803 | E198: =C198/C199-1 -> 0.005635566688 | F198: =LN(C198/C199) -> 0.005619746292 | G198: =STDEV(E198:E218) -> 0.01337788429 | H198: 0.01333364802 | I198: =G198*SQRT(252) -> 0.2123673294 | J198: =H198*SQRT(252) -> 0.2116651004 | L198: =LN(C198/C199) -> 0.005619746292 | M198: =STDEV(L198:L227) -> 0.01374978981 | N198: =M198*SQRT(252) -> 0.2182711465 | P198: =STDEV(L198:L218) -> 0.01333364802 | Q198: =P198*SQRT(252) -> 0.2116651004
B199: 2021-12-14 | C199: 798.5 | E199: -0.003121098627 | F199: -0.003125979413 | G199: =STDEV(E199:E219) -> 0.01358629142 | H199: 0.01354168693 | I199: 0.21567569 | J199: 0.2149676157 | L199: -0.003125979413 | M199: 0.01379029784 | N199: 0.2189141916 | P199: 0.01354168693 | Q199: 0.2149676157
B200: 2021-12-13 | C200: 801 | E200: -0.001869158879 | F200: -0.001870907936 | G200: =STDEV(E200:E220) -> 0.01399284027 | H200: 0.01395067932 | I200: 0.222129453 | J200: 0.2214601686 | L200: -0.001870907936 | M200: 0.01398783261 | N200: 0.2220499588 | P200: 0.01395067932 | Q200: 0.2214601686
B201: 2021-12-10 | C201: 802.5 | E201: -0.005576208178 | F201: -0.005591813266 | G201: =STDEV(E201:E221) -> 0.01492689022 | H201: 0.01489720731 | I201: 0.2369570362 | J201: 0.2364858346 | L201: -0.005591813266 | M201: 0.01478588154 | N201: 0.2347185928 | P201: 0.01489720731 | Q201: 0.2364858346
... 424 more rows
